[Event "44th Chess Olympiad Open 2022"]
[Site "Chennai"]
[Date "2022.08.03"]
[Round "6.36"]
[White "Kim, Changhoon"]
[Black "Heidenfeld, Mark"]
[Result "0-1"]
[WhiteElo "1827"]
[BlackElo "2355"]
[Annotator "TA"]
[PlyCount "136"]
[EventDate "2022.??.??"]
[TimeControl "60"]

{[%evp 20,136,57,52,49,50,43,19,50,14,20,12,14,35,21,0,14,4,2,0,0,0,0,0,0,0,0,
0,0,0,0,0,0,0,0,0,0,0,0,0,0,0,0,0,0,0,0,-9,-9,-11,-26,-27,0,0,0,-6,0,0,0,0,0,0,
16,16,16,16,16,0,0,0,0,-12,67,0,0,-23,-15,-49,0,-26,-38,-72,-60,-60,-67,-64,
-63,-69,-63,-147,-142,-143,-120,-249,-249,-251,-232,-300,-291,-259,-260,-359,
-354,-357,-350,-354,-340,-388,-437,-677,-638,-695,-671,-464,-358,-832,-820,
-797,-695]} 1. Nf3 {[%emt 0:00:03]} Nf6 {[%emt 0:00:46]} 2. c4 {[%emt 0:00:09]}
d6 {[%emt 0:00:50]} 3. d4 {[%emt 0:00:08]} g6 {[%emt 0:01:14]} 4. g3 {[%emt 0:
00:00]} Bg7 {[%emt 0:00:25]} 5. Bg2 {[%emt 0:00:19]} O-O {[%emt 0:00:17]} 6.
O-O {[%emt 0:00:00]} c6 {[%emt 0:00:43]} 7. Nc3 {[%emt 0:00:23]} Qa5 {[%emt 0:
00:00]} 8. e4 {[%emt 0:01:17]} Qh5 {[%emt 0:02:48]} 9. e5 {[%emt 0:01:13]} dxe5
{[%emt 0:01:01]} 10. Nxe5 {[%emt 0:00:17]} Qxd1 {[%emt 0:07:48]} 11. Rxd1 {
[%emt 0:00:11]} ({Much weaker is} 11. Nxd1 Rd8 $11) 11... Rd8 {[%emt 0:00:31] 
[#] E62: King's Indian: Fianchetto: 6...c6 and Panno Variation (6...Nc6)
without ...a6.} 12. Bf4 $146 {[%emt 0:04:40]} ({Predecessor:} 12. h3 Nfd7 13.
Nf3 a5 14. b3 Na6 15. Be3 Nf8 16. Rac1 Bd7 17. Na4 Nc7 18. Nb6 Ra6 19. d5 cxd5
20. cxd5 {1-0 (40) Sebenik,M (2526)-Zozulia,A (2347) Lienz 2011}) 12... Nbd7 {
[%emt 0:13:35]} 13. Rac1 {[%emt 0:15:08]} Nh5 {[%emt 0:09:20] The position is
equal.} 14. Be3 {[%emt 0:01:01]} (14. Nxc6 $5 bxc6 15. Bc7 $11) 14... Nxe5 {
[%emt 0:06:27]} 15. dxe5 {[%emt 0:00:06]} Be6 {[%emt 0:00:16]} 16. f4 {[%emt 0:
00:00]} f6 {[%emt 0:04:07]} 17. exf6 {[%emt 0:01:41]} (17. f5 {feels hotter.}
Bxf5 18. Bf3 fxe5 19. g4) 17... Rxd1+ {[%emt 0:01:24]} 18. Nxd1 {[%emt 0:01:50]
} Bxf6 {[%emt 0:01:50]} 19. b3 {[%emt 0:03:25]} Ng7 {[%emt 0:03:25]} 20. Nc3 {
[%emt 0:09:51]} Nf5 {[%emt 0:05:31]} 21. Bf2 {[%emt 0:02:30]} Bxc3 {[%emt 0:00:
00]} 22. Rxc3 {[%emt 0:00:19]} Rd8 {[%emt 0:00:11]} 23. Be3 {[%emt 0:03:07]}
Rd1+ {[%emt 0:01:39]} 24. Kf2 {[%emt 0:00:11]} Kf7 {[%emt 0:02:40]} 25. Rc2 {
[%emt 0:00:17]} Nxe3 {[%emt 0:01:12]} 26. Kxe3 $11 {[%emt 0:00:07] Endgame
KRB-KRB} Bf5 {[%emt 0:00:20]} 27. Rd2 {[%emt 0:00:50]} Re1+ {[%emt 0:00:00]}
28. Kd4 {[%emt 0:01:42]} h5 {[%emt 0:02:15]} 29. Bf3 {[%emt 0:03:21]} Kf6 {
[%emt 0:03:59]} 30. c5 {[%emt 0:10:02]} Rf1 {[%emt 0:03:11]} 31. Bg2 {[%emt 0:
00:51]} Ra1 {[%emt 0:00:35]} 32. Bf3 {[%emt 0:05:46]} a5 {[%emt 0:00:00]} 33.
Bg2 {[%emt 0:12:39]} g5 {[%emt 0:09:42]} 34. fxg5+ {[%emt 0:00:00]} Kxg5 {
[%emt 0:00:07]} 35. Bf3 {[%emt 0:00:00]} Rf1 {[%emt 0:03:28]} 36. Ke3 {[%emt 0:
06:03]} Rc1 {[%emt 0:01:51]} 37. Kd4 {[%emt 0:00:30] Against Rc3} Bg6 {[%emt 0:
00:32]} 38. Rf2 {[%emt 0:01:43]} Bb1 {[%emt 0:01:34]} 39. h4+ {[%emt 0:00:00]}
Kg6 {[%emt 0:00:59]} 40. Rb2 {[%emt 0:03:18][%cal Yb2b1] [#] Hoping for Rxb1!}
Rf1 {[%emt 0:02:15]} 41. Ke3 {[%emt 0:31:07][%cal Yb2b1] Threatens to win with
Rxb1!} Bf5 {[%emt 0:32:22]} 42. Rf2 {[%emt 0:01:10]} Re1+ {[%emt 0:00:00]} 43.
Re2 {[%emt 0:00:00]} Rc1 {[%emt 0:00:00]} 44. Kd4 {[%emt 0:00:00] Inhibits Rc3.
} e6 {[%emt 0:00:00]} 45. Rf2 {[%emt 0:00:00]} Rg1 {[%emt 0:00:00]} ({Better is
} 45... Kf6 $11) 46. Rg2 {[%emt 0:00:00]} (46. Ke5 $1 $14) 46... Rf1 {[%emt 0:
00:00]} 47. Be2 {[%emt 0:00:00]} Re1 {[%emt 0:00:00][%cal Ye6e5]} 48. Rf2 {
[%emt 0:00:00]} e5+ {[%emt 0:00:00]} (48... Kf6 $15 {is superior.}) 49. Kc3 {
[%emt 0:00:08][%cal Ye2h5]} ({Not} 49. Kxe5 $2 Bg4 50. Rf6+ Kg7 $19) (49. Ke3
$5 {[%cal Re3d2]}) 49... Be4 {[%emt 0:00:00]} 50. g4 {[%emt 0:04:31]} hxg4 {
[%emt 0:00:00] Black is more active.} 51. Bxg4 {[%emt 0:00:09]} Rc1+ $1 {
[%emt 0:00:00]} 52. Kd2 {[%emt 0:02:54]} Rxc5 {[%emt 0:00:00]} 53. Ke3 {
[%emt 0:00:08]} Bb1 {[%emt 0:00:00] And now ...Rc3+ would win.} 54. Bd1 {
[%emt 0:02:49]} (54. Rd2 $1 $15) 54... Rc3+ $17 {[%emt 0:00:00]} 55. Kd2 {
[%emt 0:00:14] [#]} Rh3 {[%emt 0:00:00]} 56. Rg2+ {[%emt 0:00:32] White does
not recover from this.} (56. h5+ $17 Kg7 57. Kc1) 56... Kf6 $19 {[%emt 0:00:11]
} 57. Rf2+ {[%emt 0:00:12]} Ke7 {[%emt 0:00:32]} 58. Kc1 {[%emt 0:00:12]} Bg6 {
[%emt 0:00:26]} 59. Rg2 {[%emt 0:01:01]} Bf7 {[%emt 0:00:34]} 60. Rg4 {[%emt 0:
00:00]} b5 {[%emt 0:02:34][%cal Yb7b5,Yb5b4]} 61. Bc2 {[%emt 0:02:28]} Kf6 {
[%emt 0:01:30]} 62. Be4 {[%emt 0:00:14]} c5 {[%emt 0:00:34]} 63. Bc6 {[%emt 0:
00:10]} b4 {[%emt 0:00:44]} 64. Bd7 {[%emt 0:00:55]} (64. Bb5 $142 Rh2 65. h5)
64... Rh1+ {[%emt 0:00:40]} 65. Kb2 {[%emt 0:00:32]} Rh2+ {[%emt 0:00:00]} 66.
Ka1 {[%emt 0:00:36]} Bg6 {[%emt 0:01:10] ( -> ...Rh1+)} 67. a4 $2 {[%emt 0:00:
26]} (67. Bc6) 67... Bf7 {[%emt 0:00:41]} 68. Rg3 {[%emt 0:00:36]} Rxh4 {
[%emt 0:00:09] Weighted Error Value: White=0.15 (very precise) /Black=0.05 
(flawless)} 0-1

[Event "44th Chess Olympiad Open 2022"]
[Site "Chennai"]
[Date "2022.08.03"]
[Round "6.37"]
[White "Stoyanov, Tsvetan"]
[Black "Dornbusch, Tatiana"]
[Result "1-0"]
[WhiteElo "2450"]
[BlackElo "2247"]
[Annotator "RC"]
[PlyCount "53"]
[EventDate "2022.??.??"]
[TimeControl "60"]

1. c4 {[%emt 0:00:02]} e5 {[%emt 0:03:47]} 2. Nc3 {[%emt 0:00:04]} Nc6 {
[%emt 0:01:51]} 3. Nf3 {[%emt 0:01:57]} Nf6 {[%emt 0:03:39]} 4. e4 {[%emt 0:00:
00]} Bc5 {[%emt 0:03:29]} 5. Nxe5 {[%emt 0:00:11]} Nxe5 {[%emt 0:08:03]} 6. d4
{[%emt 0:01:46]} Bb4 {[%emt 0:06:46]} 7. dxe5 {[%emt 0:00:08]} Nxe4 {[%emt 0:
00:00]} 8. Qf3 {[%emt 0:00:06]} d5 {[%emt 0:02:22]} 9. Be2 {[%emt 0:00:10]} O-O
{[%emt 0:09:40]} 10. O-O {[%emt 0:00:35]} Bxc3 {[%emt 0:00:58]} 11. bxc3 {
[%emt 0:00:01]} c6 {[%emt 0:06:01]} 12. cxd5 {[%emt 0:01:57]} cxd5 {[%emt 0:00:
00]} 13. c4 {[%emt 0:00:22]} Re8 {[%emt 0:09:30]} 14. Bf4 {[%emt 0:15:12]} g5 {
[%emt 0:09:06]} 15. cxd5 {[%emt 0:02:41]} Qxd5 {[%emt 0:00:53]} 16. Bxg5 {
[%emt 0:07:48]} Qxe5 {[%emt 0:00:55]} 17. Bf4 {[%emt 0:00:33]} Qg7 {[%emt 0:00:
00]} 18. Bb5 {[%emt 0:08:36]} Bg4 {[%emt 0:01:39]} 19. Qe3 {[%emt 0:01:36]} Re7
{[%emt 0:02:41]} 20. Rae1 {[%emt 0:05:42]} a6 {[%emt 0:00:55]} 21. Qa3 {
[%emt 0:02:56]} Qf8 {[%emt 0:08:59]} 22. Bd3 {[%emt 0:03:10]} Rae8 {[%emt 0:00:
00]} 23. f3 {[%emt 0:00:42]} Qg7 {[%emt 0:01:38]} 24. fxg4 {[%emt 0:01:15]}
Qd4+ {[%emt 0:00:42]} 25. Be3 {[%emt 0:00:08]} Qc3 {[%emt 0:00:29]} 26. Qxc3 {
[%emt 0:00:20]} Nxc3 {[%emt 0:00:04]} 27. Bd2 {[%emt 0:00:04]} 1-0

[Event "44th Chess Olympiad Open 2022"]
[Site "Chennai"]
[Date "2022.08.03"]
[Round "6.37"]
[White "Bagheri, Amir"]
[Black "Petkov, Momchil"]
[Result "1/2-1/2"]
[WhiteElo "2375"]
[BlackElo "2510"]
[Annotator "TA"]
[PlyCount "168"]
[EventDate "2022.??.??"]
[TimeControl "60"]

{[%evp 11,168,1,26,11,25,10,10,11,17,18,14,10,17,-10,-10,-13,-18,0,0,0,0,-25,
-25,-25,-25,-25,-25,-25,-25,-45,-25,-25,-25,-25,0,-25,0,-25,-25,-26,-26,-26,
-26,-26,-8,-8,-3,-4,0,-1,-1,-12,-12,-12,-12,-12,-12,-19,-19,-19,-19,-19,-19,
-26,-26,-26,-26,-26,-26,-26,-26,-26,-26,-26,-26,-26,-26,-26,-26,-64,-64,-64,-9,
-9,0,-9,0,0,0,0,0,0,0,0,-20,-55,-55,-70,-39,-55,0,-55,-48,-114,-73,-114,-102,
-114,-114,-114,-105,-114,-87,-114,-114,-114,-114,-114,-96,-114,-114,-115,-115,
-115,-115,-115,-115,-115,-115,-115,-115,-115,-115,-115,-115,-115,-115,-115,
-115,-115,-115,-115,-115,-115,-115,-115,-115,-115,-115,-115,-115,-115,-115,
-115,-115,-115,-115,-115,0]} 1. d4 {[%emt 0:00:02]} Nf6 {[%emt 0:00:16]} 2. Nf3
{[%emt 0:00:04]} d5 {[%emt 0:00:09]} 3. Bf4 {[%emt 0:00:08]} e6 {[%emt 0:00:41]
} 4. e3 {[%emt 0:00:20]} c5 {[%emt 0:00:15]} 5. Nbd2 {[%emt 0:01:34]} Nc6 {
[%emt 0:00:13]} 6. c3 {[%emt 0:04:59]} cxd4 {[%emt 0:00:14] 6...Nh5 is setting
a new trend.} 7. exd4 {[%emt 0:05:45] D02:1 d4 d5 2 Nf3 sidelines, including 2.
..Nf6 3 g3 and 2...Nf6 3 Bf4.} (7. Nxd4 Bd6 $11) 7... Nh5 {[%emt 0:00:15]} 8.
Be3 {[%emt 0:03:05]} Bd6 {[%emt 0:00:18]} 9. Ne5 {[%emt 0:03:06] The position
is equal.} Nf6 {[%emt 0:04:13]} 10. f4 {[%emt 0:01:25]} Qb6 {[%emt 0:00:15]}
11. Qb3 {[%emt 0:02:28]} Ng8 {[%emt 0:00:16]} 12. Qxb6 {[%emt 0:02:27]} axb6 {
[%emt 0:00:07]} 13. Bd3 {[%emt 0:00:58]} Nge7 {[%emt 0:01:10] [#]} 14. g3 $146
{[%emt 0:02:00]} ({Predecessor:} 14. O-O f6 15. Nef3 Bd7 16. Rfe1 O-O 17. g3
Na5 18. c4 dxc4 19. Nxc4 Nxc4 20. Bxc4 {1-0 (48) Ozen,D (2397)-Thybo,J (2568)
Tornelo INT 2021}) 14... f6 {[%emt 0:02:02]} 15. Nef3 {[%emt 0:04:06]} h6 {
[%emt 0:05:26]} 16. h4 {[%emt 0:00:39]} h5 {[%emt 0:03:11]} 17. O-O {[%emt 0:
00:00]} Bd7 {[%emt 0:03:00]} 18. Rfe1 {[%emt 0:03:10]} Kf7 {[%emt 0:14:06]} 19.
Re2 {[%emt 0:02:59]} Nf5 {[%emt 0:04:29][%cal Ye7f5,Yf5h6,Yh6g4]} 20. Bf2 {
[%emt 0:00:54]} Nce7 {[%emt 0:16:38]} 21. a3 {[%emt 0:01:15]} Nh6 {[%emt 0:05:
03]} 22. Rae1 {[%emt 0:04:53]} Ng4 {[%emt 0:01:20]} 23. Nf1 {[%emt 0:04:14]} (
23. Nh2 $5 {[%cal Rh2g4]}) 23... Nf5 {[%emt 0:03:24]} 24. Kg2 {[%emt 0:02:58]}
Bf8 {[%emt 0:08:33]} 25. Bxf5 {[%emt 0:21:55]} exf5 {[%emt 0:00:00]} 26. Ne3 {
[%emt 0:00:05]} Nxe3+ {[%emt 0:06:30]} 27. Rxe3 {[%emt 0:00:00]} Ba4 {[%emt 0:
01:14]} 28. Re6 {[%emt 0:09:34]} Ra6 {[%emt 0:00:38]} 29. Nd2 {[%emt 0:04:19]}
Bd7 {[%emt 0:01:15]} 30. R6e3 {[%emt 0:00:07]} Bd6 {[%emt 0:00:00]} 31. Nf3 {
[%emt 0:02:31][%cal Yf3e5]} Ba4 {[%emt 0:02:51]} 32. Rc1 {[%emt 0:00:38]
Prevents Bc2.} Raa8 {[%emt 0:01:26]} 33. Ng1 {[%emt 0:05:26]} Rhg8 {[%emt 0:01:
24]} 34. Be1 {[%emt 0:01:49]} Rae8 {[%emt 0:06:20]} 35. Rxe8 {[%emt 0:00:08]}
Kxe8 {[%emt 0:00:21]} 36. Bd2 {[%emt 0:00:39]} Kd7 {[%emt 0:00:00]} 37. Re1 {
[%emt 0:01:24]} Bc2 {[%emt 0:00:24]} 38. Kf2 {[%emt 0:00:45]} Be4 {[%emt 0:00:
52]} 39. Ne2 {[%emt 0:00:53]} Kc6 {[%emt 0:01:20]} 40. Nc1 {[%emt 0:01:16]} Kb5
{[%emt 0:01:23]} 41. Be3 {[%emt 0:03:48]} Ka4 {[%emt 0:00:00]} 42. Rg1 {
[%emt 0:03:48]} Rh8 {[%emt 0:01:37]} 43. Rd1 {[%emt 0:08:00]} Rh6 {[%emt 0:00:
49]} 44. Rd2 {[%emt 0:00:39]} Kb5 {[%emt 0:02:33][%cal Ya4b5,Yb5c6,Yc6d7,Yd7e6,
Ye6f7,Yf7e7]} 45. b3 {[%emt 0:04:52]} Bxa3 {[%emt 0:16:08]} 46. Ra2 {[%emt 0:
01:54]} Bd6 {[%emt 0:00:21] This bishop pair is nice.} ({Black should try} 
46... Bxc1 $15 47. Bxc1 Rh8) 47. Ra8 $11 {[%emt 0:01:09]} Kc6 {[%emt 0:00:13]}
48. Rg8 {[%emt 0:01:13]} Rh7 {[%emt 0:00:05]} 49. Ke2 {[%emt 0:02:10]} Kd7 {
[%emt 0:00:12]} 50. Kd2 {[%emt 0:01:41]} Ke6 {[%emt 0:00:00][%cal Yg7g6]} 51.
Re8+ {[%emt 0:00:37]} Kf7 {[%emt 0:01:00]} 52. Rd8 {[%emt 0:00:11]} Ke7 $36 {
[%emt 0:00:05] Black has some pressure.} 53. Rg8 {[%emt 0:00:18]} g6 {[%emt 0:
02:23]} 54. Ne2 {[%emt 0:00:49]} Bc7 {[%emt 0:05:05]} 55. Rc8 {[%emt 0:02:15]}
({Don't go for} 55. Rxg6 $2 Kf7 56. Rg5 Rh8 $19) 55... Bd6 {[%emt 0:02:00]} 56.
Rg8 $1 {[%emt 0:00:17]} b5 {[%emt 0:00:36]} 57. b4 {[%emt 0:00:34]} ({Avoid
the trap} 57. Rxg6 $2 Kf7 58. Rxf6+ Kxf6 $19) (57. Nc1 $15) 57... b6 {[%emt 0:
00:20] Black is better.} 58. Ra8 {[%emt 0:00:26] [#] Strongly threatening Ra7+.
} ({Not} 58. Rxg6 $2 Kf7 59. Rxf6+ Kxf6 $19) 58... Bc7 {[%emt 0:00:34]} 59. Ra7
{[%emt 0:00:46]} Kd7 {[%emt 0:00:21]} 60. Ra8 {[%emt 0:00:11]} Rg7 {[%emt 0:00:
09]} 61. Ke1 {[%emt 0:00:00]} Bd3 {[%emt 0:00:50]} 62. Kf2 {[%emt 0:01:03]} Re7
{[%emt 0:01:46]} 63. Rg8 {[%emt 0:01:01] [#]} Ke6 $1 {[%emt 0:00:04]} 64. Ng1 {
[%emt 0:00:27]} Bd6 {[%emt 0:02:52]} 65. Ra8 {[%emt 0:00:27]} Rb7 {[%emt 0:00:
50]} 66. Nf3 {[%emt 0:00:00]} Bb8 {[%emt 0:00:25]} 67. Bd2 {[%emt 0:00:09]} Kd7
{[%emt 0:00:43]} 68. Ne1 {[%emt 0:00:30]} Be4 {[%emt 0:00:11]} 69. Nf3 {
[%emt 0:00:16]} Kc8 {[%emt 0:00:13]} 70. Ng1 {[%emt 0:01:03]} Re7 {[%emt 0:00:
17]} 71. Nf3 {[%emt 0:00:00]} Kb7 {[%emt 0:00:16]} 72. Ra2 {[%emt 0:00:39]} Bd6
{[%emt 0:00:23]} 73. Ra3 {[%emt 0:00:24]} Re8 {[%emt 0:00:14]} 74. Ng1 {
[%emt 0:00:34]} Bd3 {[%emt 0:00:22]} 75. Ra1 {[%emt 0:00:26]} Bc7 {[%emt 0:00:
51]} 76. Kg2 {[%emt 0:00:00]} Bd8 {[%emt 0:01:18]} 77. Re1 {[%emt 0:00:22]}
Be4+ {[%emt 0:00:20]} 78. Kf2 {[%emt 0:00:08]} Rg8 {[%emt 0:00:05]} 79. Nh3 {
[%emt 0:00:14]} Bc7 {[%emt 0:00:45]} 80. Ra1 {[%emt 0:00:05]} Bd6 {[%emt 0:00:
05]} 81. Be3 {[%emt 0:00:00]} Re8 {[%emt 0:00:38]} 82. Ra3 {[%emt 0:01:03]} Bd3
{[%emt 0:00:56]} 83. Ra1 {[%emt 0:00:18]} Rc8 {[%emt 0:00:41]} 84. Bd2 {
[%emt 0:00:17]} Re8 {[%emt 0:00:06] Weighted Error Value: White=0.07 (flawless)
/Black=0.07 (flawless)} ({Black should play} 84... Rf8 $17 85. Ng1 Be4) 1/2-1/2

[Event "44th Chess Olympiad Open 2022"]
[Site "Chennai"]
[Date "2022.08.03"]
[Round "6.37"]
[White "Tashev, Aleksandar"]
[Black "Verdier, Patrice"]
[Result "1-0"]
[WhiteElo "2262"]
[BlackElo "2017"]
[Annotator "TA"]
[PlyCount "105"]
[EventDate "2022.??.??"]
[TimeControl "60"]

{[%evp 26,105,106,83,95,42,89,62,83,90,91,98,85,85,90,61,175,179,174,138,153,
129,211,195,240,235,250,260,258,252,254,246,235,235,222,249,250,220,233,197,
225,236,280,221,331,350,343,291,326,291,291,291,307,258,404,393,496,503,554,
547,600,583,529,505,689,692,600,660,870,722,854,831,798,800,768,745,5614,1093,
5830,4492,2646,2827]} 1. d4 {[%emt 0:00:03]} Nf6 {[%emt 0:00:22]} 2. Nf3 {
[%emt 0:00:11]} c5 {[%emt 0:00:23]} 3. e3 {[%emt 0:01:29]} e6 {[%emt 0:03:30]}
4. Bd3 {[%emt 0:01:09]} b6 {[%emt 0:00:32]} 5. O-O {[%emt 0:02:08]} Bb7 {
[%emt 0:00:12]} 6. c4 {[%emt 0:01:09]} Be7 {[%emt 0:02:42]} 7. Nc3 {[%emt 0:00:
00]} O-O {[%emt 0:00:27]} 8. d5 {[%emt 0:01:49]} exd5 {[%emt 0:11:01]} 9. cxd5
{[%emt 0:00:21]} d6 {[%emt 0:06:19]} 10. e4 {[%emt 0:00:57]} a6 {[%emt 0:01:10]
} 11. a4 {[%emt 0:01:20]} Re8 {[%emt 0:02:11]} 12. h3 {[%emt 0:03:11]} Nbd7 {
[%emt 0:01:51]} 13. Bf4 {[%emt 0:02:09]} Bf8 {[%emt 0:02:05]} 14. Re1 {[%emt 0:
00:00] White is more active.} Ne5 {[%emt 0:03:54] E14: Queen's Indian:
Classical Variation (4 e3).} 15. Bf1 {[%emt 0:08:27]} (15. Nxe5 $16 dxe5 16.
Bd2) 15... h6 {[%emt 0:05:10]} (15... Nxf3+ $14 16. Qxf3 h6) 16. Nd2 {[%emt 0:
00:00] [#]} Rb8 $146 {[%emt 0:12:02] White is slightly better.} ({Predecessor:
} 16... Nfd7 17. Bg3 Qf6 18. f4 Ng6 19. Nc4 Qd4+ 20. Kh2 Qxd1 21. Raxd1 Rab8
22. e5 h5 {1-0 (47) Pushkov,N (2541)-Markarov,A (2317) St Petersburg 2001}) 17.
Bh2 {[%emt 0:02:11]} g5 {[%emt 0:00:56]} 18. f4 {[%emt 0:11:35]} gxf4 {[%emt 0:
00:00]} 19. Bxf4 {[%emt 0:01:20]} Bc8 {[%emt 0:02:18]} 20. Nf3 {[%emt 0:07:31]
Threatens to win with Nxe5.} Nh7 {[%emt 0:08:03]} (20... Nfd7 $14) 21. Nxe5 $18
{[%emt 0:11:14]} dxe5 {[%emt 0:00:13]} 22. Be3 {[%emt 0:01:13]} Qf6 {[%emt 0:
00:00]} 23. Bc4 {[%emt 0:09:02]} Bd6 {[%emt 0:02:30]} (23... Qg6 $16) 24. Qh5 {
[%emt 0:09:46]} Qg6 {[%emt 0:09:48]} 25. Qxh6 {[%emt 0:00:00]} Kh8 {[%emt 0:00:
00]} 26. Qxg6 {[%emt 0:00:00]} fxg6 {[%emt 0:00:06]} 27. Rf1 {[%emt 0:00:00]}
Kg7 {[%emt 0:00:18]} 28. Rf3 {[%emt 0:00:44]} Rf8 {[%emt 0:01:24]} 29. Raf1 {
[%emt 0:00:38]} Rxf3 {[%emt 0:00:38]} 30. Rxf3 {[%emt 0:00:07]} Bb7 {[%emt 0:
00:00]} 31. h4 {[%emt 0:02:41]} Rf8 {[%emt 0:01:06]} 32. Kf2 {[%emt 0:05:39]}
Nf6 {[%emt 0:02:25]} 33. Bg5 {[%emt 0:04:19]} Nd7 {[%emt 0:06:14]} 34. Ne2 {
[%emt 0:00:00]} Rxf3+ {[%emt 0:00:27]} (34... Nf6 $142) 35. gxf3 {[%emt 0:00:
00]} ({Less strong is} 35. Kxf3 Nf6 36. Ng3 Bc7 $18) 35... Nf6 {[%emt 0:00:30]}
36. Ke3 {[%emt 0:00:00]} Bc7 {[%emt 0:01:04]} 37. f4 {[%emt 0:01:54]} Bd6 {
[%emt 0:00:34]} 38. b3 {[%emt 0:00:17]} Bc7 {[%emt 0:00:29]} 39. fxe5 {[%emt 0:
00:00]} Bxe5 {[%emt 0:00:07]} (39... Ng4+ $142 40. Kd2 Nxe5) 40. Nf4 {[%emt 0:
00:00]} Bd4+ {[%emt 0:02:08]} 41. Kf3 {[%emt 0:30:45] [#] Hoping for Ne6+.
White is clearly winning.} Be5 {[%emt 0:08:37]} 42. Ne6+ {[%emt 0:00:00]} Kh7 {
[%emt 0:04:59]} 43. Nd8 {[%emt 0:00:00]} Bc8 {[%emt 0:00:29]} 44. Nc6 {[%emt 0:
00:00]} Bg4+ {[%emt 0:05:16]} 45. Ke3 {[%emt 0:00:00]} Bb2 {[%emt 0:01:07]} 46.
Bxa6 {[%emt 0:00:00]} Bd1 {[%emt 0:02:13]} 47. Bc4 {[%emt 0:00:00]} Nd7 {
[%emt 0:06:55]} 48. Kf4 {[%emt 0:00:00] [#] Black must now prevent e5.} Bc1+ {
[%emt 0:01:00]} 49. Kg3 {[%emt 0:00:00]} Bb2 {[%emt 0:00:22]} 50. d6 {[%emt 0:
00:00]} Be5+ {[%emt 0:02:32]} 51. Bf4 {[%emt 0:00:00]} (51. Nxe5 $142 Nxe5 52.
Kf4) 51... Bxf4+ {[%emt 0:00:31]} 52. Kxf4 {[%emt 0:00:00] Intending e5 and
mate.} Nf8 {[%emt 0:00:04]} 53. Nb8 {[%emt 0:00:00] Weighted Error Value:
White=0.15 (very precise) /Black=0.38} 1-0

[Event "44th Chess Olympiad Open 2022"]
[Site "Chennai"]
[Date "2022.08.03"]
[Round "6.37"]
[White "Ribbegren, Karl Johan"]
[Black "Yordanov, Lachezar"]
[Result "0-1"]
[WhiteElo "2198"]
[BlackElo "2316"]
[Annotator "TA"]
[PlyCount "60"]
[EventDate "2022.??.??"]
[TimeControl "60"]

{[%evp 9,60,8,15,2,3,0,0,-6,-4,0,-6,-44,8,-42,-43,-42,-30,-42,-30,-41,-37,-80,
-71,-83,-51,-87,-91,-144,-111,-130,-107,-118,-120,-174,-149,-178,-167,-181,
-160,-274,-241,-489,-472,-505,-491,-545,-399,-394,-308,-1414,-1364,-29962,
-5785]} 1. d4 {[%emt 0:00:08]} Nf6 {[%emt 0:00:07]} 2. Nf3 {[%emt 0:00:04]} e6
{[%emt 0:00:07]} 3. Bg5 {[%emt 0:00:43][%cal Yc1g5,Yg5h4,Yh4g3]} h6 {[%emt 0:
00:08]} 4. Bh4 {[%emt 0:00:56]} d6 {[%emt 0:00:17]} 5. Nbd2 {[%emt 0:00:00]}
Nbd7 {[%emt 0:02:02]} (5... g5 $5 {[%cal Rg5h4]} 6. Bg3 g4 $11) 6. e3 {[%emt 0:
05:32] A46:1 d4 Nf6 2 Nf3 e6: Torre, London and Colle Systems.} g5 {[%emt 0:00:
47]} 7. Bg3 {[%emt 0:00:17]} Nh5 {[%emt 0:00:09]} 8. Be2 {[%emt 0:00:00] The
position is equal.} Qe7 {[%emt 0:03:37]} 9. c3 {[%emt 0:07:22]} Bg7 {[%emt 0:
00:51]} 10. Nc4 {[%emt 0:02:02] [#]} a6 $146 {[%emt 0:08:01]} (10... O-O $15) (
{Predecessor:} 10... Nxg3 11. hxg3 b6 12. Qb3 Bb7 13. a4 a6 14. Kf1 O-O 15. Qc2
f5 16. Ncd2 Nf6 {0-1 (29) Kouvatsos,A-Saltaev,M (2450) Katerini 1993}) 11. Nfd2
{[%emt 0:03:28]} (11. Qc2 $11) 11... Nxg3 $15 {[%emt 0:03:53]} 12. hxg3 {
[%emt 0:02:20]} d5 {[%emt 0:00:18]} 13. Na5 {[%emt 0:08:28]} b6 {[%emt 0:01:09]
} 14. Nab3 {[%emt 0:00:31]} c5 {[%emt 0:08:53][%cal Yc7c5,Yc5c4]} 15. f4 {
[%emt 0:01:21]} c4 {[%emt 0:02:02]} 16. Nc1 {[%emt 0:00:08]} b5 {[%emt 0:01:54]
} 17. b3 {[%emt 0:03:34]} O-O $36 {[%emt 0:03:47][%cal Ye6e5] Black has strong
initiative.} 18. e4 {[%emt 0:19:43]} (18. a4 $142) 18... cxb3 {[%emt 0:28:32]}
19. Ncxb3 {[%emt 0:00:00] [#]} dxe4 {[%emt 0:00:22]} 20. Nxe4 {[%emt 0:04:35]}
Bb7 {[%emt 0:00:14][%cal Yc8b7,Yb7g2,Yg2d5]} 21. Nf2 {[%emt 0:01:25]} (21. Qd3
$17) 21... Bxg2 $19 {[%emt 0:07:11] This bishop pair is nice.} 22. Rh2 {
[%emt 0:00:22]} Bd5 {[%emt 0:00:13]} 23. Ng4 {[%emt 0:03:08]} Rfc8 {[%emt 0:00:
10][%cal Yf8c8,Yc8c3,Yc3e3]} 24. Nxh6+ {[%emt 0:03:20]} (24. Rc1 $17 {might
work better.}) 24... Kf8 {[%emt 0:00:00]} 25. Bd3 $2 {[%emt 0:06:04] [#]} (25.
Rc1 {keeps fighting.}) 25... Rxc3 {[%emt 0:02:04]} 26. Qd2 {[%emt 0:01:22]} Qb4
{[%emt 0:04:56]} 27. fxg5 {[%emt 0:01:09]} Bxb3 {[%emt 0:00:14]} 28. axb3 {
[%emt 0:05:34]} Qxd4 {[%emt 0:00:00]} 29. Rd1 $2 {[%emt 0:00:31]} (29. Qf2
Qxf2+ 30. Rxf2 Bxh6 31. Bxb5 Re3+ 32. Re2 Rxe2+ 33. Kxe2) 29... Qg1+ {[%emt 0:
00:24]} 30. Bf1 {[%emt 0:00:13]} Re3+ {[%emt 0:00:06] Weighted Error Value:
White=1.03/Black=0.18 (very precise)} 0-1